fUSD/lending_fUSD_20260201
["ID","MTS","AMOUNT","RATE_DAILY","PERIOD"]
[404195664,1769933768538,-1200.0,0.00014556,2]
[404195665,1769933768560,-150.0,0.00014556,2]
[404195666,1769933768583,-300.0,0.00014556,2]
[404195667,1769933768607,-500.0,0.00014557,2]
[404195668,1769933768629,-562.05,0.00014557,2]
[404195757,1769934070434,200.0,0.00043561,30]
[404195758,1769934071036,207.4,0.00043561,30]
[404195759,1769934072162,215.0738,0.00043561,30]
[404195760,1769934072956,215.0738,0.00043561,30]
[404195767,1769934432171,202.38431367,0.00043561,120]
[404195770,1769934605170,4649.0,0.00043561,30]
[404195787,1769934631544,-363.83329961,0.0001439,2]
[404195789,1769934631555,-305.0775542,0.00014481,2]
[404195791,1769934631566,-250.0,0.00015,2]
[404195794,1769934631576,-200.0,0.00015028,2]
[404195796,1769934631587,-500.0,0.00015035,2]
[404195798,1769934631598,-239.0,0.00015126,2]
[404195800,1769934631608,-972.85823032,0.00015126,2]
[404195808,1769934631670,-227.14176968,0.00015126,2]
[404195810,1769934631681,-300.0,0.00015126,2]
[404195812,1769934631694,-272.85823032,0.00015127,2]
[404195814,1769934631706,-3124.2367233,0.00015127,2]
[404195815,1769934631718,-832.22856812,0.00015127,2]
[404195816,1769934631729,-1600.0,0.00015127,2]
[404195817,1769934631740,-619.35433313,0.00015127,2]
[404195818,1769934631751,-994.88176241,0.00015127,2]
[404195819,1769934631762,-286.98,0.00015127,2]
[404195820,1769934631778,-1293.07089697,0.00015127,2]
[404195821,1769934631790,-996.27948575,0.00015127,2]
[404195822,1769934631800,-2298.78,0.00015164,2]
[404195823,1769934631810,-1315.88,0.000152,2]
[404195824,1769934631822,-164.22,0.00015248,2]
[404195825,1769934631833,-1608.99433903,0.00015283,2]
[404195826,1769934631845,-300.0,0.00015283,2]
[404195827,1769934631855,-440.03194318,0.00015284,2]
[404195828,1769934631867,-10974.72,0.00015284,2]
[404195829,1769934637633,-1276.90389803,0.00015284,2]
[404195830,1769934637655,-6103.65377534,0.00015284,2]
[404195831,1769934637676,-252.9257169,0.00015284,2]
[404195832,1769934637702,-8229.21082737,0.00015284,2]
[404195833,1769934637808,-4707.47864378,0.00015284,2]
[404195834,1769934637820,-3928.40235194,0.00015284,2]
[404195835,1769934637834,-802.0,0.00015284,2]
[404195836,1769934637846,-7497.24950025,0.00015284,2]
[404195837,1769934637859,-5923.73475762,0.00015284,2]
[404195838,1769934637871,-875.29292091,0.00015284,2]
[404195867,1769934639950,-160.238506,0.00015283,2]
[404195868,1769934639961,-770.05291835,0.00015284,2]
[404195883,1769934644421,-500.0,0.00015283,2]
[404195884,1769934644432,-282.6416513,0.00015283,2]
[404195885,1769934644443,-435.71881382,0.00015283,2]
[404195886,1769934644457,-407.59065357,0.00015283,2]
[404195887,1769934644468,-551.07557987,0.00015284,2]
[404195888,1769934644481,-18542.0,0.00015284,2]
[404195889,1769934644493,-4131.7238808,0.00015284,2]
[404195894,1769934645714,-500.0,0.00015283,2]
[404195895,1769934645724,-2725.13891036,0.00015284,2]
[404195904,1769934726451,9711.96283397,0.00043561,120]
[404195905,1769934956410,445.68,0.00043561,30]
[404195936,1769935831717,-410.85153205,0.0001488,2]
[404195942,1769935831767,-642.75246795,0.0001488,2]
[404195944,1769935831778,-172.363,0.0001488,2]
[404195947,1769935831787,-96.65737746,0.00014932,2]
[404195950,1769935831798,-98.34262254,0.00014932,2]
[404195953,1769935831807,-195.0,0.0001502,2]
[404195956,1769935831817,-300.0,0.00015081,2]
[404195959,1769935831830,-485.57490944,0.00015081,2]
[404195961,1769935831841,-714.42509056,0.00015081,2]
[404195963,1769935831850,-208.94,0.00015082,2]
[404195965,1769935831859,-75.63490944,0.00015082,2]
[404195967,1769935831871,-424.36509056,0.00015082,2]
[404195968,1769935831880,-333.72881193,0.00015082,2]
[404195969,1769935831890,-261.00243229,0.00015082,2]
[404195970,1769935831899,-565.12970023,0.00015082,2]
[404195971,1769935831910,-253.23132206,0.00015082,2]
[404195972,1769935831922,-246.76867794,0.00015082,2]
[404195973,1769935831932,-33.23132206,0.00015082,2]
[404195974,1769935831943,-130.93930028,0.00015082,2]
[404195975,1769935831953,-500.0,0.00015082,2]
[404195976,1769935831963,-500.0,0.00015082,2]
[404195977,1769935831972,-500.0,0.00015082,2]
[404195978,1769935831982,-500.0,0.00015082,2]
[404195980,1769935831991,-500.0,0.00015082,2]
[404195982,1769935832000,-500.0,0.00015082,2]
[404195984,1769935832009,-483.61924766,0.00015082,2]
[404195986,1769935832019,-500.0,0.00015082,2]
[404195988,1769935832028,-500.0,0.00015082,2]
[404195990,1769935832038,-500.0,0.00015082,2]
[404195992,1769935832047,-500.0,0.00015082,2]
[404195994,1769935832056,-500.0,0.00015082,2]
[404195996,1769935832065,-500.0,0.00015082,2]
[404195998,1769935832074,-500.0,0.00015082,2]
[404196000,1769935832083,-500.0,0.00015082,2]
[404196002,1769935832093,-500.0,0.00015082,2]
[404196004,1769935832103,-500.0,0.00015082,2]
[404196006,1769935832112,-500.0,0.00015082,2]
[404196008,1769935832121,-500.0,0.00015082,2]
[404196010,1769935832130,-500.0,0.00015082,2]
[404196012,1769935832139,-567.60724719,0.00015082,2]
[404196014,1769935832149,-500.0,0.00015082,2]
[404196016,1769935832158,-500.0,0.00015082,2]
[404196018,1769935832169,-500.0,0.00015082,2]
[404196021,1769935832180,-500.0,0.00015082,2]
[404196023,1769935832189,-500.0,0.00015082,2]
[404196025,1769935832199,-500.0,0.00015082,2]
[404196027,1769935832210,-500.0,0.00015082,2]
[404196029,1769935832220,-500.0,0.00015082,2]
[404196031,1769935832230,-500.0,0.00015082,2]
[404196033,1769935832242,-500.0,0.00015082,2]
[404196035,1769935832256,-500.0,0.00015082,2]
[404196037,1769935832266,-500.0,0.00015082,2]
[404196039,1769935832277,-500.0,0.00015082,2]
[404196040,1769935832286,-500.0,0.00015082,2]
[404196042,1769935832295,-500.0,0.00015082,2]
[404196045,1769935832305,-500.0,0.00015082,2]
[404196047,1769935832314,-500.0,0.00015082,2]
[404196049,1769935832324,-500.0,0.00015082,2]
[404196051,1769935832333,-500.0,0.00015082,2]
[404196053,1769935832342,-500.0,0.00015082,2]
[404196055,1769935832351,-500.0,0.00015082,2]
[404196057,1769935832360,-500.0,0.00015082,2]
[404196059,1769935832369,-500.0,0.00015082,2]
[404196061,1769935832378,-500.0,0.00015082,2]
[404196063,1769935832387,-500.0,0.00015082,2]
[404196065,1769935832396,-500.0,0.00015082,2]
[404196067,1769935832405,-500.0,0.00015082,2]
[404196068,1769935832413,-500.0,0.00015082,2]
[404196070,1769935832422,-500.0,0.00015082,2]
[404196072,1769935832432,-500.0,0.00015082,2]
[404196074,1769935832442,-500.0,0.00015082,2]
[404196076,1769935832451,-500.0,0.00015082,2]
[404196078,1769935832460,-500.0,0.00015082,2]
[404196080,1769935832469,-500.0,0.00015082,2]
[404196082,1769935832478,-500.0,0.00015082,2]
[404196084,1769935832488,-200.0,0.00015082,2]
[404196087,1769935832498,-500.0,0.00015082,2]
[404196088,1769935832508,-500.0,0.00015082,2]
[404196090,1769935832518,-500.0,0.00015082,2]
[404196091,1769935832528,-500.0,0.00015082,2]
[404196092,1769935832537,-500.0,0.00015082,2]
[404196093,1769935832547,-500.0,0.00015082,2]
[404196094,1769935832556,-194.87551331,0.00015082,2]
[404196095,1769935832566,-500.0,0.00015082,2]
[404196096,1769935832575,-22095.50421761,0.00015083,2]
[404196097,1769935832587,-97466.74364861,0.00015083,2]
[404196099,1769935837708,-18889.33525792,0.00015083,2]
[404196101,1769935837762,-1110.68474208,0.00015083,2]
[404196106,1769935837820,-3316.24,0.00015083,2]
[404196114,1769935840274,-284.40031566,0.00015083,2]
[404196116,1769935840286,-1971.45,0.00015083,2]
[404196118,1769935840297,-3947.33865703,0.00015083,2]
[404196144,1769935846060,-1198.39466041,0.00015083,2]
[404196145,1769935846071,-3225.16937623,0.00015083,2]
[404196150,1769936206508,656.62,0.00012366,2]
[404196151,1769936497860,1875.422801,0.00043561,120]
[404196153,1769936643910,832.18606282,0.00043561,30]
[404196180,1769937031822,-200.0,0.00014046,2]
[404196182,1769937031832,-66.65592776,0.00014046,2]
[404196187,1769937031875,-199.34407224,0.00014046,2]
[404196189,1769937031885,-195.0,0.000141,2]
[404196191,1769937031896,-164.35,0.00014155,2]
[404196193,1769937031905,-148.14931647,0.00014276,2]
[404196198,1769937031983,-46.85068353,0.00014276,2]
[404196199,1769937031993,-300.0,0.00014318,2]
[404196200,1769937032003,-1200.0,0.00014318,2]
[404196201,1769937032013,-192.0,0.00014318,2]
[404196202,1769937032023,-2230.10019491,0.00014319,2]
[404196203,1769937032037,-1020.54048194,0.00014319,2]
[404196204,1769937032050,-454.19104179,0.00014319,2]
[404196205,1769937032063,-4892.25406696,0.00014319,2]
[404196313,1769937037970,-391.41946584,0.00014319,2]
[404196317,1769937039909,-1147.04140008,0.00014319,2]
[404196318,1769937039921,-1045.28751313,0.00014319,2]
[404196319,1769937040119,-1090.0512326,0.00014319,2]
[404196333,1769937043919,-351.19655827,0.00014319,2]
[404196334,1769937043930,-1110.78417923,0.00014319,2]
[404196335,1769937044637,-2179.75386525,0.00014319,2]
[404196336,1769937044646,-166.66,0.00014545,2]
[404196337,1769937044656,-139.06728755,0.00014545,2]
[404196338,1769937044670,-360.93271245,0.00014545,2]
[404196339,1769937044680,-500.0,0.00014545,2]
[404196340,1769937044690,-500.0,0.00014545,2]
[404196341,1769937044699,-500.0,0.00014545,2]
[404196342,1769937044709,-500.0,0.00014545,2]
[404196343,1769937044719,-150.0,0.00014781,2]
[404196344,1769937044729,-4121.1669,0.00014782,2]
[404196345,1769937044739,-556.2559,0.00014782,2]
[404196346,1769937044748,-2500.0,0.00014782,2]
[404196347,1769937044758,-1964.29816009,0.00014783,2]
[404196348,1769937044766,-157.19666209,0.00014783,2]
[404196349,1769937044775,-644.9438023,0.00014783,2]
[404196350,1769937044784,-150.0,0.00014808,2]
[404196351,1769937044794,-166.66,0.00014851,2]
[404196352,1769937044803,-170.2905794,0.00014872,2]
[404196353,1769937044813,-151.0,0.00014879,2]
[404196354,1769937044824,-208.94,0.00014881,2]
[404196355,1769937044834,-164.84250391,0.00014883,2]
[404196356,1769937044843,-2941.2821,0.00014883,2]
[404196357,1769937044852,-165.16094524,0.00014884,2]
[404196358,1769937044861,-500.0,0.00014889,2]
[404196359,1769937044870,-182.7017026,0.00014889,2]
[404196360,1769937044879,-297.59257155,0.00014889,2]
[404196361,1769937044888,-474.51427382,0.00014889,2]
[404196362,1769937044898,-151.0,0.00014974,2]
[404196363,1769937044907,-151.0,0.00014974,2]
[404196364,1769937044916,-151.0,0.00014974,2]
[404196365,1769937044925,-151.0,0.00014974,2]
[404196366,1769937044934,-151.0,0.00014974,2]
[404196367,1769937044943,-151.0,0.00014974,2]
[404196368,1769937044953,-151.0,0.00014974,2]
[404196369,1769937044962,-151.0,0.00014974,2]
[404196370,1769937044971,-151.0,0.00014974,2]
[404196371,1769937044980,-151.0,0.00014974,2]
[404196372,1769937044989,-151.0,0.00014974,2]
[404196373,1769937044998,-153.82422866,0.00014974,2]
[404196374,1769937045008,-278.36328388,0.00014976,2]
[404196375,1769937045019,-500.0,0.00014982,2]
[404196376,1769937045029,-500.0,0.00014982,2]
[404196377,1769937045039,-500.0,0.00014982,2]
[404196378,1769937045050,-500.0,0.00014982,2]
[404196379,1769937045062,-561.9191787,0.00014982,2]
[404196380,1769937045072,-8311.6023347,0.00015083,2]
[404196381,1769937045083,-66245.0547865,0.00015083,2]
[404196382,1769937045092,-180.25,0.000151,2]
[404196383,1769937045107,-180.25,0.000151,2]
[404196384,1769937045116,-1964.29816001,0.00015129,2]
[404196385,1769937045126,-644.94380228,0.00015129,2]
[404196386,1769937045135,-1610.3,0.00015156,2]
[404196387,1769937045144,-166.66,0.00015157,2]
[404196388,1769937045154,-500.0,0.00015183,2]
[404196389,1769937045163,-500.0,0.00015183,2]
[404196390,1769937045174,-500.0,0.00015183,2]
[404196391,1769937045184,-180.25,0.000152,2]
[404196392,1769937045193,-180.25,0.000152,2]
[404196393,1769937045202,-500.0,0.00015213,2]
[404196394,1769937045213,-157.19666208,0.00015303,2]
[404196395,1769937045222,-500.0,0.00015342,2]
[404196396,1769937045231,-3958.33,0.00015364,2]
[404196397,1769937045242,-250.0,0.0001545,2]
[404196398,1769937045251,-250.0,0.0001545,2]
[404196399,1769937045261,-1435.12927667,0.0001545,2]
[404196400,1769937045270,-250.0,0.0001545,2]
[404196401,1769937045280,-300.0,0.0001545,2]
[404196402,1769937045289,-2500.0,0.0001545,2]
[404196403,1769937045298,-195.0,0.0001545,2]
[404196404,1769937045308,-166.66,0.00015464,2]
[404196405,1769937045321,-1964.29816001,0.00015476,2]
[404196406,1769937045331,-644.94380228,0.00015476,2]
[404196407,1769937045340,-479.76,0.00015522,2]
[404196408,1769937045350,-166.66,0.0001577,2]
[404196409,1769937045360,-1964.29816001,0.00015822,2]
[404196410,1769937045369,-157.19666208,0.00015822,2]
[404196411,1769937045379,-644.94380228,0.00015822,2]
[404196412,1769937045389,-1000.0,0.00015877,2]
[404196413,1769937045399,-182.19,0.00015895,2]
[404196414,1769937045409,-255.0,0.00015904,2]
[404196415,1769937045419,-500.0,0.00015945,2]
[404196416,1769937045430,-164.75,0.00016,2]
[404196417,1769937045440,-207.81,0.00016035,2]
[404196418,1769937045451,-150.0,0.00016036,2]
[404196419,1769937045461,-166.66,0.00016076,2]
[404196420,1769937045471,-1964.29816001,0.00016168,2]
[404196421,1769937045482,-644.94380228,0.00016168,2]
[404196422,1769937045492,-4005.0,0.00016189,2]
[404196423,1769937045502,-151.0,0.00016219,2]
[404196424,1769937045514,-151.0,0.00016219,2]
[404196425,1769937045524,-151.0,0.00016219,2]
[404196426,1769937045535,-151.0,0.00016219,2]
[404196427,1769937045544,-500.0,0.00016287,2]
[404196428,1769937045553,-500.0,0.00016287,2]
[404196429,1769937045562,-299.75585909,0.00016287,2]
[404196430,1769937045571,-275.95769419,0.00016287,2]
[404196431,1769937045581,-500.0,0.00016287,2]
[404196432,1769937045591,-500.0,0.00016287,2]
[404196433,1769937045602,-500.0,0.00016287,2]
[404196434,1769937045612,-500.0,0.00016287,2]
[404196435,1769937045621,-500.0,0.00016287,2]
[404196436,1769937045632,-500.0,0.00016287,2]
[404196437,1769937045642,-500.0,0.00016287,2]
[404196438,1769937045653,-183.24567888,0.00016287,2]
[404196439,1769937045663,-500.0,0.00016287,2]
[404196440,1769937045674,-183.24567887,0.00016287,2]
[404196441,1769937045684,-150.0,0.00016288,2]
[404196442,1769937045694,-616.0,0.00016288,2]
[404196443,1769937045703,-1334.0,0.00016288,2]
[404196444,1769937045713,-174.174,0.00016288,2]
[404196445,1769937045723,-6577.0,0.00016288,2]
[404196446,1769937045732,-2445.0,0.00016288,2]
[404196447,1769937045741,-1204.0,0.00016288,2]
[404196448,1769937045753,-157.19666208,0.00016342,2]
[404196449,1769937045762,-150.0,0.00016356,2]
[404196450,1769937045773,-182.19,0.00016377,2]
[404196451,1769937045785,-165.16094524,0.00016392,2]
[404196452,1769937045796,-838.0,0.000164,2]
[404196453,1769937045806,-216.65614083,0.00016436,2]
[404196454,1769937045816,-324.10462933,0.00016436,2]
[404196455,1769937045827,-438.5205,0.00016436,2]
[404196456,1769937045837,-495.09758452,0.00016438,2]
[404196457,1769937045846,-500.0,0.00016438,2]
[404196458,1769937045857,-500.0,0.00016438,2]
[404196459,1769937045866,-500.0,0.00016438,2]
[404196460,1769937045876,-500.0,0.00016438,2]
[404196461,1769937045886,-500.0,0.00016438,2]
[404196462,1769937045906,-500.0,0.00016438,2]
[404196463,1769937045918,-500.0,0.00016438,2]
[404196464,1769937045928,-500.0,0.00016438,2]
[404196465,1769937045937,-500.0,0.00016438,2]
[404196466,1769937045948,-500.0,0.00016438,2]
[404196467,1769937045957,-500.0,0.00016438,2]
[404196468,1769937045967,-500.0,0.00016438,2]
[404196469,1769937045978,-500.0,0.00016438,2]
[404196470,1769937045990,-500.0,0.00016438,2]
[404196471,1769937045999,-500.0,0.00016438,2]
[404196472,1769937046009,-500.0,0.00016438,2]
[404196473,1769937046019,-500.0,0.00016438,2]
[404196474,1769937046029,-500.0,0.00016438,2]
[404196475,1769937046040,-500.0,0.00016438,2]
[404196476,1769937046051,-500.0,0.00016438,2]
[404196477,1769937046061,-500.0,0.00016438,2]
[404196478,1769937046071,-500.0,0.00016438,2]
[404196479,1769937046082,-500.0,0.00016438,2]
[404196480,1769937046092,-500.0,0.00016438,2]
[404196481,1769937046102,-500.0,0.00016438,2]
[404196482,1769937046112,-500.0,0.00016438,2]
[404196483,1769937046121,-500.0,0.00016438,2]
[404196484,1769937046132,-500.0,0.00016438,2]
[404196485,1769937046141,-500.0,0.00016438,2]
[404196486,1769937046152,-500.0,0.00016438,2]
[404196487,1769937046162,-500.0,0.00016438,2]
[404196488,1769937046176,-500.0,0.00016438,2]
[404196489,1769937046185,-500.0,0.00016438,2]
[404196490,1769937046195,-500.0,0.00016438,2]
[404196491,1769937046204,-500.0,0.00016438,2]
[404196492,1769937046215,-500.0,0.00016438,2]
[404196493,1769937046225,-500.0,0.00016438,2]
[404196494,1769937046235,-500.0,0.00016438,2]
[404196495,1769937046247,-500.0,0.00016438,2]
[404196496,1769937046256,-500.0,0.00016438,2]
[404196497,1769937046266,-500.0,0.00016438,2]
[404196498,1769937046276,-500.0,0.00016438,2]
[404196499,1769937046286,-500.0,0.00016438,2]
[404196500,1769937046295,-500.0,0.00016438,2]
[404196501,1769937046305,-500.0,0.00016438,2]
[404196502,1769937046315,-500.0,0.00016438,2]
[404196503,1769937046325,-500.0,0.00016438,2]
[404196504,1769937046335,-500.0,0.00016438,2]
[404196505,1769937046344,-500.0,0.00016438,2]
[404196506,1769937046354,-500.0,0.00016438,2]
[404196507,1769937046363,-500.0,0.00016438,2]
[404196508,1769937046373,-500.0,0.00016438,2]
[404196509,1769937046382,-500.0,0.00016438,2]
[404196510,1769937046392,-500.0,0.00016438,2]
[404196511,1769937046402,-1964.29816001,0.00016515,2]
[404196512,1769937046411,-164.75,0.000166,2]
[404196513,1769937046420,-2833.0,0.0001672,2]
[404196514,1769937046431,-504.0,0.00016822,2]
[404196515,1769937046440,-182.19,0.00016859,2]
[404196516,1769937046449,-1964.29816001,0.00016861,2]
[404196517,1769937046459,-157.19666208,0.00016861,2]
[404196518,1769937046468,-1340.0,0.00016942,2]
[404196519,1769937046477,-1340.0,0.00016945,2]
[404196520,1769937046487,-1854.56916,0.00017002,2]
[404196521,1769937046496,-14781.2696835,0.00017002,2]
[404196522,1769937046679,-1340.0,0.00017031,2]
[404196523,1769937046693,-838.0,0.0001704,2]
[404196524,1769937046703,-1340.0,0.00017041,2]
[404196525,1769937046713,-433.0,0.00017116,2]
[404196526,1769937046722,-1340.0,0.00017181,2]
[404196527,1769937046731,-164.75,0.000172,2]
[404196528,1769937046742,-1964.29816001,0.00017207,2]
[404196529,1769937046752,-1340.0,0.00017324,2]
[404196530,1769937046762,-157.19666208,0.00017381,2]
[404196531,1769937046776,-413.8103136,0.00017431,2]
[404196532,1769937046787,-3298.1470716,0.00017431,2]
[404196533,1769937046797,-479.76,0.00017462,2]
[404196534,1769937046808,-1045.68637885,0.000175,2]
[404196535,1769937046818,-1340.0,0.00017506,2]
[404196536,1769937046829,-379.91577259,0.00017518,2]
[404196537,1769937046838,-1964.29816001,0.00017554,2]
[404196538,1769937046849,-1340.0,0.00017579,2]
[404196539,1769937046860,-150.0,0.00017698,2]
[404196540,1769937046870,-500.0,0.00017698,2]
[404196541,1769937046879,-500.0,0.00017698,2]
[404196542,1769937046890,-150.0,0.00017698,2]
[404196543,1769937046900,-150.0,0.00017698,2]
[404196544,1769937046910,-500.0,0.00017698,2]
[404196545,1769937046922,-500.0,0.00017698,2]
[404196546,1769937046932,-173.46834997,0.00017698,2]
[404196547,1769937046942,-500.0,0.00017698,2]
[404196548,1769937046953,-150.0,0.00017698,2]
[404196549,1769937046962,-150.0,0.00017698,2]
[404196550,1769937046973,-500.0,0.00017698,2]
[404196551,1769937046985,-500.0,0.00017753,2]
[404196552,1769937046995,-500.0,0.00017753,2]
[404196553,1769937047005,-160.61573289,0.00017753,2]
[404196554,1769937047014,-150.0,0.00017753,2]
[404196555,1769937047024,-500.0,0.00017753,2]
[404196556,1769937047034,-500.0,0.00017753,2]
[404196557,1769937047044,-500.0,0.00017753,2]
[404196558,1769937047055,-150.0,0.00017753,2]
[404196559,1769937047065,-500.0,0.00017753,2]
[404196560,1769937047076,-1340.0,0.00017788,2]
[404196561,1769937047086,-164.75,0.000178,2]
[404196562,1769937047095,-500.0,0.00017808,2]
[404196563,1769937047106,-500.0,0.00017808,2]
[404196564,1769937047116,-150.0,0.00017808,2]
[404196565,1769937047126,-197.77683582,0.00017808,2]
[404196566,1769937047136,-500.0,0.00017808,2]
[404196567,1769937047145,-500.0,0.00017808,2]
[404196568,1769937047155,-200.0,0.00017808,2]
[404196569,1769937047166,-500.0,0.00017808,2]
[404196570,1769937047180,-500.0,0.00017808,2]
[404196571,1769937047189,-2000.0,0.0001782,2]
[404196572,1769937047199,-2000.0,0.0001782,2]
[404196573,1769937047208,-200.0,0.00017855,2]
[404196574,1769937047218,-200.0,0.00017856,2]
[404196575,1769937047228,-1000.0,0.00017862,2]
[404196576,1769937047237,-500.0,0.00017862,2]
[404196577,1769937047251,-500.0,0.00017862,2]
[404196578,1769937047260,-150.0,0.00017862,2]
[404196579,1769937047269,-450.0,0.00017862,2]
[404196580,1769937047279,-500.0,0.00017862,2]
[404196581,1769937047288,-500.0,0.00017862,2]
[404196582,1769937047299,-500.0,0.00017863,2]
[404196583,1769937047308,-266.0,0.00017883,2]
[404196584,1769937047317,-10000.0,0.000179,2]
[404196585,1769937047327,-165.16094524,0.000179,2]
[404196586,1769937047337,-1964.29816001,0.000179,2]
[404196587,1769937047346,-340.6920356,0.000179,2]
[404196588,1769937047356,-157.19666208,0.000179,2]
[404196589,1769937047366,-500.0,0.00017917,2]
[404196590,1769937047375,-500.0,0.00017917,2]
[404196591,1769937047384,-150.0,0.00017917,2]
[404196592,1769937047394,-500.0,0.00017917,2]
[404196593,1769937047403,-500.0,0.00017917,2]
[404196594,1769937047413,-500.0,0.00017918,2]
[404196595,1769937047422,-500.0,0.00017972,2]
[404196596,1769937047431,-250.0,0.00017972,2]
[404196597,1769937047441,-250.0,0.00017972,2]
[404196598,1769937047450,-500.0,0.00017972,2]
[404196599,1769937047460,-500.0,0.00017972,2]
[404196600,1769937047469,-511.34250138,0.00017973,2]
[404196601,1769937047478,-500.0,0.00017973,2]
[404196602,1769937047487,-2891.66500414,0.0001799,3]
[404196603,1769937047503,-5420.83509586,0.0001799,3]
[404196604,1769937047512,-14622.92414741,0.00018,2]
[404196605,1769937047535,-500.0,0.00016438,2]
[404196606,1769937047545,-199.25908594,0.00016438,2]
[404196616,1769937725209,346.92554585,0.0004356,30]
[404196617,1769937725280,400.52933925,0.0004356,30]
[404196618,1769937732052,520.0,0.0004356,30]
[404196619,1769937740823,1024.43239068,0.0004356,30]
[404196620,1769937787270,227.8093786,0.0004356,30]
[404196807,1769938231968,-312.7,0.00014782,2]
[404196820,1769938232073,-687.3,0.00014782,2]
[404196822,1769938232083,-250.0,0.00014891,2]
[404196825,1769938232094,-250.0,0.00015,2]
[404196827,1769938232105,-1200.0,0.00015283,2]
[404196828,1769938232115,-300.0,0.00015283,2]
[404196829,1769938232126,-2000.0,0.00015284,2]
[404196830,1769938232135,-2000.0,0.00015284,2]
[404196831,1769938232144,-2000.0,0.00015284,2]
[404196832,1769938232154,-1116.66001099,0.00015284,2]
[404196833,1769938232166,-295.0908251,0.00015284,2]
[404196847,1769938238092,-588.24916391,0.00015284,2]
[404196848,1769938238102,-131.76538682,0.00015284,2]
[404196849,1769938238146,-754.34961318,0.00015284,2]
[404196850,1769938238157,-1000.0,0.00015284,2]
[404196851,1769938238167,-284.933,0.00015284,2]
[404196852,1769938238178,-63.50614027,0.00015284,2]
[404196853,1769938238190,-779.37785973,0.00015284,2]
[404196854,1769938238200,-17.18200666,0.00015284,2]
[404196855,1769938238212,-155.18208242,0.00015284,2]
[404196856,1769938238222,-168.18,0.00015639,2]
[404196857,1769938238232,-200.0,0.00015993,2]
[404196858,1769938238242,-190.05554611,0.00016086,2]
[404196859,1769938238252,-500.0,0.00016086,2]
[404196860,1769938238261,-267.68540516,0.00016086,2]
[404196861,1769938238271,-344.0052785,0.00016086,2]
[404196862,1769938238280,-500.0,0.00016086,2]
[404196863,1769938238289,-500.0,0.00016086,2]
[404196864,1769938238299,-500.0,0.00016086,2]
[404196865,1769938238308,-204.02408674,0.00016086,2]
[404196866,1769938238317,-500.0,0.00016086,2]
[404196867,1769938238327,-269.04330534,0.00016086,2]
[404196868,1769938238336,-448.22606322,0.00016086,2]
[404196869,1769938238346,-185.75023261,0.00016087,2]
[404196870,1769938238357,-1648.31356739,0.00016087,2]
[404196872,1769938238366,-1176.310688,0.00016087,2]
[404196874,1769938238377,-365.28577948,0.00016087,2]
[404196914,1769938240179,-1123.42602351,0.00016087,2]
[404196915,1769938240341,-972.15998328,0.00016087,2]
[404196916,1769938240353,-1209.59999999,0.00016087,2]
[404196917,1769938240502,-2315.09651318,0.00016087,2]
[404196997,1769938243971,-709.17,0.00016087,2]
[404196998,1769938244028,-7588.92766263,0.00016087,2]
[404196999,1769938244039,-3163.88365613,0.00016087,2]
[404197000,1769938244881,-375055.88044436,0.00016087,2]
[404197001,1769938244894,-541.82394898,0.00016087,2]
[404197009,1769938246159,-4472.34233975,0.00016087,2]